Cogmind - Beta 16 --- EXPLORER MODE // 2025.12.15 @ 09:20:03 Player: K.K.Y. Result: Destroyed by Autobeam Turret with Autobeam Performance ------------- Evolutions (0) 0 Regions Visited (3) 600 Robots Destroyed (31) 155 Value Destroyed (821) 821 Prototype IDs (1) 20 Alien Tech Used (0) 0 Bonus (89) 89 TOTAL SCORE: 1685 Bonus ------- Follower Combat Kills 115 Friendly Fire -26 Cogmind --------- Core Integrity 0/250 Matter 300/300 Energy 249/250 System Corruption 0% Temperature Cool (18) Movement Core (200) Ox3 Location -10/Subcaves Parts ------- > --- POWER (1) -------- Ion Engine > --- PROPULSION (3) --- (None) > --- UTILITY (2) ------ Sensor Array Signal Interpreter > --- WEAPON (2) ------- Improved EM Shotgun Makeshift Sword > --- INVENTORY (5) ---- Improved Heat Sink Huge Storage Unit Improved EM Shotgun Improved EM Shotgun Beamcaster Peak State ------------ > --- POWER ------------ Ion Engine > --- PROPULSION ------- Flight Unit Flight Unit Flight Unit > --- UTILITY ---------- Improved Heat Sink Signal Interpreter > --- WEAPON ----------- Improved EM Shotgun Particle Gun > --- INVENTORY -------- Huge Storage Unit Sensor Array Improved EM Shotgun Improved EM Shotgun Makeshift Sword [Rating: 14] Favorites ----------- Power Ion Engine Engine Ion Engine Propulsion Flight Unit Wheel Wheel Flight Unit Flight Unit Utility Signal Interpreter Device Sensor Array Processor Signal Interpreter Weapon Improved EM Shotgun Energy Gun Improved EM Shotgun Energy Cannon Beam Cannon Slashing Weapon Makeshift Sword Build | -11 -10 -10 -10 ------- Run | Yrd Mat Min Sub Slots Evolved 1 | . 1 . . Power . | . . . . Propulsion 1 | . 1 . . Utility . | . . . . Weapon . | . . . . Parts Attached 23 | 7 10 4 2 Power 3 | 1 1 1 . Engine 3 | 1 1 1 . Core . | . . . . Reactor . | . . . . Propulsion 8 | 2 4 2 . Treads . | . . . . Leg . | . . . . Wheel 2 | 2 . . . Hover . | . . . . Flight 6 | . 4 2 . Utility 3 | 2 . 1 . Device 2 | 1 . 1 . Storage . | . . . . Processor 1 | 1 . . . Hackware . | . . . . Protection . | . . . . Artifact . | . . . . Weapon 9 | 2 5 . 2 Energy Gun 7 | 2 4 . 1 Energy Cannon 1 | . 1 . . Ballistic Gun . | . . . . Ballistic Cannon . | . . . . Launcher . | . . . . Special Weapon . | . . . . Impact Weapon . | . . . . Slashing Weapon 1 | . . . 1 Piercing Weapon . | . . . . Special Melee Weapon . | . . . . Unidentified Prototypes 1 | . 1 . . Parts Lost 5 | . 1 . 4 Power . | . . . . Propulsion 3 | . . . 3 Utility . | . . . . Weapon 2 | . 1 . 1 Highest Loss Streak 3 | . 1 . 3 To Critical Strikes . | . . . . Average Backups 4 | 1 4 5 4 Power . | . . . . Propulsion . | . . . . Utility 1 | . 1 2 2 Weapon 2 | 1 3 3 2 Tool/Special . | . . . . Unused Backups 7 | . 3 2 2 Power 1 | . 1 . . Propulsion . | . . . . Utility 2 | . . 1 1 Weapon 4 | . 2 1 1 Tool/Special . | . . . . Average Slot Usage (%) 82 | . 90 100 70 Engine 12 | . 12 12 12 Wheel 4 | . 18 . . Flight 16 | . 10 37 8 Device 12 | . 12 12 12 Processor 12 | . 12 12 12 Energy Gun 18 | . 21 25 14 Slashing Weapon 4 | . . . 9 Peak Build Rating 14 | 7 12 14 12 Average Rating 10 | 4 8 11 11 On Entrance 7 | . 7 11 12 Avg Prop Armor Cover (%) . | . . . . Naked Turns . | . . . . Heaviest Build 12 | 8 12 12 12 Greatest Support 20 | 20 20 12 8 Greatest Overweight (x) 3 | 2 2 . 3 Average Overweight (x) . | . . . 1 Largest Inventory Capacity 5 | 5 5 5 5 Average Capacity 5 | 5 5 5 5 Most Carried 5 | 5 5 5 5 Average Carried 4 | 1 4 4 4 Final Capacity 5 | 5 5 5 5 Final Carried 5 | 2 5 5 5 Class Distribution -------------------- 100% | Hacker-Mutant Dominant Class ---------------- Hacker-Mutant | -10/Materials Hacker-Mutant | -10/Mines Hacker-Mutant | -10/Subcaves Resources | -11 -10 -10 -10 ----------- Run | Yrd Mat Min Sub Matter Collected 450 | 244 121 70 15 Remotely . | . . . . Salvage Created 1221 | 100 393 521 207 Parts 80 | 7 27 30 16 Haulers Intercepted 1 | . 1 . . Recyclers Shooed . | . . . . Parts Field Recycled . | . . . . Retrieved Matter . | . . . . Parts Self-Destructed . | . . . . Prevented . | . . . . Parts Restored . | . . . . Kills | -11 -10 -10 -10 ------- Run | Yrd Mat Min Sub Combat Hostiles Destroyed 24 | . 8 10 6 Melee 1 | . . . 1 Guns 22 | . 7 10 5 Cannons 1 | . 1 . . Classes Destroyed 7 | 2 4 . 1 Tunneler 2 | 2 . . . Hauler 1 | . 1 . . Recycler 2 | 1 . 1 . Watcher 2 | . 2 . . Swarmer 7 | . 2 2 3 Grunt 15 | . 6 8 1 Subdweller 2 | . . . 2 Best Kill Streak 6 | 1 6 6 3 Combat Bots Only 6 | . 5 6 3 Max Kills in Single Turn 2 | 1 1 2 1 Gunslinging 1 | . . 1 . Exploded . | . . . . Melee 1 | . . . 1 Uniques/NPCs Destroyed . | . . . . Combat | -11 -10 -10 -10 -------- Run | Yrd Mat Min Sub Hostile Shots Fired 122 | . 36 31 55 Missed 30 | . 8 9 13 Hits 92 | . 28 22 42 Projectile 92 | . 28 22 42 Critical Strikes 1 | . . 1 . Damage Taken 824 | . 232 192 400 Core 250 | . 33 57 160 Absorbed by Shields . | . . . . Ignored by Resistances 506 | . 143 119 244 Core Remaining (%) 100 | 100 . . . Volleys Fired 69 | 8 21 20 20 Largest 2 | 2 2 2 2 Hottest 110 | 80 110 110 110 Shots Fired 112 | 16 33 38 25 Gun 109 | 16 30 38 25 Cannon 3 | . 3 . . Launcher . | . . . . Special . | . . . . Kinetic . | . . . . Thermal 67 | 16 19 20 12 Explosive . | . . . . Electromagnetic 45 | . 14 18 13 Robot Hit Streak 19 | 11 12 19 11 Robot Miss Streak 2 | 1 2 1 2 Penetration Max . | . . . . Secondary Targets 6 | . 3 3 . Max Gunslinging Chain 1 | . 1 1 . Shots Hit Robots 109 | 13 28 34 34 Core Hits 57 | 4 19 24 10 Critical Kills . | . . . . Critical Parts Destroyed . | . . . . Critical Strikes 3 | . . 2 1 Burn 3 | . . 2 1 Melee Attacks 39 | . . . 39 Impact . | . . . . Slashing 39 | . . . 39 Piercing . | . . . . Sneak Attacks 1 | . . . 1 Combat Hostiles . | . . . . Follow-up Attacks . | . . . . Damage Inflicted 1979 | 144 465 598 772 Guns 1430 | 144 430 569 287 Cannons 35 | . 35 . . Explosions 29 | . . 29 . Melee 485 | . . . 485 Ramming . | . . . . Kinetic . | . . . . Thermal 755 | 144 224 244 143 Explosive . | . . . . Electromagnetic 739 | . 241 354 144 Impact . | . . . . Slashing 485 | . . . 485 Piercing . | . . . . Highest Corruption . | . . . . Average Corruption . | . . . . Corruption Purged . | . . . . Corruption Blocked . | . . . . Overload Shots . | . . . . Overflow Damage . | . . . . Projectiles . | . . . . Explosions . | . . . . Melee . | . . . . Knockbacks . | . . . . Impact . | . . . . Kinetic . | . . . . Secondary . | . . . . Self-Inflicted Damage 24 | . . 24 . Shots 1 | . . 1 . Rammed . | . . . . Targets Rammed . | . . . . Kicked . | . . . . Crushed . | . . . . Highest Temperature 429 | 72 344 429 22 Average Temperature 134 | 26 129 172 11 Received Heat Transfer 582 | . 210 177 195 Effects 3 | . 2 1 . Shutdowns 2 | . 1 1 . Interference 1 | . 1 . . Siege Activations . | . . . . Martial Activations . | . . . . Shielding Activations . | . . . . Robots Disrupted . | . . . . Combat Hostiles . | . . . . Robots Corrupted . | . . . . Combat Hostiles . | . . . . Parts Fried 3 | . 1 2 . Impact Corruptions . | . . . . Robots Melted . | . . . . Combat Hostiles . | . . . . Parts Melted 2 | . 1 1 . Heat Transferred 2114 | 325 629 753 407 Parts Sabotaged . | . . . . Parts Stolen . | . . . . Parts Stripped . | . . . . Power Chain Reactions 1 | . . 1 . Alert | -11 -10 -10 -10 ------- Run | Yrd Mat Min Sub Maximum Alert Level . | . . . . Low Security (%) 100 | 100 100 100 . Level 1 . | . . . . Level 2 . | . . . . Level 3 . | . . . . Level 4 . | . . . . Level 5 . | . . . . High Security . | . . . . Max Security . | . . . . Peak Influence 122 | 5 92 122 . Initial 18 | . 2 18 . Average 40 | 1 27 60 . Influence Increases 707 | 15 229 262 201 Destroy 0b10 Robot/C 460 | . 160 200 100 Destroy 0b10 Robot/NC 35 | 15 15 5 . Destroy Leader 96 | . 36 50 10 Allied During Kill 2 | . . 1 1 Successful Hack 3 | . 3 . . Disable Machine 4 | . . 4 . Destroy Structure 2 | . . 2 . Lose Combat Pursuer 105 | . 15 . 90 Influence Decreases 592 | 10 165 331 86 Entered New Map 54 | . 3 51 . Time Decay 508 | 10 152 280 66 Lost Part 10 | . 10 . . Lost Ally 20 | . . . 20 Squads Dispatched . | . . . . Investigation . | . . . . Extermination . | . . . . Reinforcement . | . . . . Assault . | . . . . Garrison . | . . . . Intercept . | . . . . Searches Triggered . | . . . . Construction Impeded . | . . . . Haulers Reinforced . | . . . . Active Scanning Responses . | . . . . Cargo Convoy Interrupts . | . . . . Stealth | -11 -10 -10 -10 --------- Run | Yrd Mat Min Sub Distress Signals 3 | . 3 . . Communications Jammed . | . . . . Distress Signals . | . . . . Times Spotted 34 | . 11 10 13 Peak Tracking Total 5 | . 3 4 5 Tactical Retreats 3 | . 1 . 2 Traps | -11 -10 -10 -10 ------- Run | Yrd Mat Min Sub Traps Triggered . | . . . . Indirectly . | . . . . Trap Hack Attempts . | . . . . Triggered . | . . . . Disarmed . | . . . . Reprogrammed 1 | . 1 . . Reused . | . . . . Traps Extracted . | . . . . Installed . | . . . . Triggered . | . . . . Machines | -11 -10 -10 -10 ---------- Run | Yrd Mat Min Sub Machines Disabled 1 | . . 1 . Max in Single Turn 1 | . . 1 . Machines Repaired . | . . . . Machines Dismantled . | . . . . Machines Sabotaged . | . . . . Overloaded Fab Kills . | . . . . Hacking | -11 -10 -10 -10 --------- Run | Yrd Mat Min Sub Machines Accessed 5 | . 5 . . Terminals 3 | . 3 . . Fabricators . | . . . . Repair Stations . | . . . . Recycling Units 2 | . 2 . . Scanalyzers . | . . . . Garrison Access . | . . . . Total Hacks 15 | . 15 . . Successful 10 | . 10 . . Failed 5 | . 5 . . Catastrophic . | . . . . Database Lockouts . | . . . . Manual 7 | . 7 . . Terminals 9 | . 9 . . Fabricators . | . . . . Repair Stations . | . . . . Recycling Units 6 | . 6 . . Scanalyzers . | . . . . Garrison Access . | . . . . Terminal Hacks 2 | . 2 . . Reprogram Traps 1 | . 1 . . Hauler Manifests 1 | . 1 . . Fabricator Hacks . | . . . . Repair Station Hacks . | . . . . Recycling Unit Hacks 3 | . 3 . . Retrieve Matter 1 | . 1 . . Retrieve Components 2 | . 2 . . Scanalyzer . | . . . . Garrison Access Hacks . | . . . . Unauthorized Hacks 5 | . 5 . . Terminals 3 | . 3 . . Botnet 3 | . 3 . . Fabricators . | . . . . Repair Stations . | . . . . Recycling Units 2 | . 2 . . Reject 2 | . 2 . . Scanalyzers . | . . . . Garrison Access . | . . . . Data Cores Recovered . | . . . . Used . | . . . . Hacking Detections 2 | . 2 . . Full Trace Events . | . . . . Feedback Events . | . . . . Feedback Blocked . | . . . . Robot Schematics Acquired . | . . . . Robots Built . | . . . . Authchips . | . . . . Time . | . . . . Total Robot Build Rating . | . . . . Part Schematics Acquired . | . . . . Parts Built . | . . . . Authchips . | . . . . Time . | . . . . Total Part Build Rating . | . . . . Part Studies Acquired . | . . . . Parts Repaired . | . . . . Time . | . . . . Parts Recycled . | . . . . Recycled Matter . | . . . . Retrieved Matter . | . . . . Retrieved Components 4 | . 4 . . Parts Scanalyzed . | . . . . Part Schematics Acquired . | . . . . Parts Damaged . | . . . . Bothacking | -11 -10 -10 -10 ------------ Run | Yrd Mat Min Sub Used RIF Installer . | . . . . Robots Hacked . | . . . . Non-combat . | . . . . Combat . | . . . . Robot Hacks Applied . | . . . . Relay Couplers Released . | . . . . Fabnet Peak Effective % . | . . . . Robots Rewired . | . . . . Allies Hacked . | . . . . Hacks Repelled . | . . . . Allies | -11 -10 -10 -10 -------- Run | Yrd Mat Min Sub Total Allies 2 | . . 2 . Largest Group 2 | . . 2 2 Highest-Rated Group 42 | . . 42 42 Highest-Rated Ally 31 | . . 31 31 Total Orders . | . . . . Ally Attacks 19 | . . . 19 Total Damage 339 | . . . 339 Kills 4 | . . . 4 Allies Corrupted . | . . . . Allies Melted . | . . . . Intel | -11 -10 -10 -10 ------- Run | Yrd Mat Min Sub Active Infowar (turns) 1676 | 84 359 379 854 Sensors 1676 | 84 359 379 854 Robot Analysis Total . | . . . . Derelict Logs Recovered 1 | . . 1 . Drone Launches . | . . . . Drone Recoveries . | . . . . Exploration | -11 -10 -10 -10 ------------- Run | Yrd Mat Min Sub Turns Passed 1725 | 95 359 417 854 Spaces Moved 1643 | 60 478 673 432 Core 267 | 37 . . 230 Treads . | . . . . Legs . | . . . . Wheels 264 | 23 241 . . Hover . | . . . . Flight 1112 | . 237 673 202 Fastest Speed 34 | 50 34 34 37 Average Speed 74 | 89 57 34 153 Slowest Speed 210 | 150 210 34 200 Overloaded Moves . | . . . . Propulsion Burnouts . | . . . . Robots Hopped 12 | . . 12 . Potential Cave-ins . | . . . . Cave-ins Triggered . | . . . . Exploration Rate (%) 51 | 4 71 99 31 Regions Visited 3 Branch Regions 2 Pre-discovered Areas . | . . . . Known Exits Taken 3 | 1 1 1 . Unknown Exits Taken . | . . . . Scrap Searched 1 | . . 1 . Spaces Dug 7 | . . . 7 Terrain Destroyed 9 | . . 2 7 Melee 7 | . . . 7 Projectile . | . . . . AOE 2 | . . 2 . Terrain Rammed . | . . . . Walls Destroyed . | . . . . Machines Disabled . | . . . . Actions | -11 -10 -10 -10 --------- Run | Yrd Mat Min Sub Total 1986 | 85 528 812 561 Wait 183 | . . 116 67 Move 1616 | 59 477 648 432 Hop 12 | . . 12 . Pick Up 25 | 10 11 3 1 Fast Attach 2 | . 2 . . Attach 10 | 7 1 1 1 Detach . | . . . . Swap 14 | . 7 6 1 Drop 16 | 1 9 6 . Fire 69 | 8 21 20 20 Melee 39 | . . . 39 Ram . | . . . . Kick . | . . . . Crush . | . . . . Escape Stasis . | . . . . Rewire . | . . . . Trap . | . . . . Miscellaneous . | . . . . Route ------- -11/Scrapyard -10/Materials (discovered 3 exits: *Mat x2 / *Min) -10/Mines (discovered 3 exits: *Mat x2 / *Sub) -10/Subcaves (discovered 2 exits: *Mat / *Rec) History --------- Turn | Location | Event 7 | -11/Scrapyard | Identified exit to Materials 7 | -11/Scrapyard | Discovered exit to Materials (range 16) 96 | -11/Scrapyard | Entered Materials 96 | -10/Materials | Evolved 1 slot: Propulsion x1 312 | -10/Materials | Build established: Hacker-Mutant 324 | -10/Materials | Identified exit to Materials 324 | -10/Materials | Discovered exit to Materials (range 12) 421 | -10/Materials | Discovered exit to Materials (range 16) 441 | -10/Materials | Identified exit to Mines 441 | -10/Materials | Discovered exit to Mines (range 13) 455 | -10/Materials | Entered Mines 558 | -10/Mines | Identified exit to Subcaves 558 | -10/Mines | Discovered exit to Subcaves (range 8) 560 | -10/Mines | Discovered exit to Materials (range 6) 575 | -10/Mines | A weapon hastily lodged in a ceiling crevice suddenly fell to the ground 596 | -10/Mines | Discovered exit to Materials (range 5) 664 | -10/Mines | Learned Materials stockpile data 872 | -10/Mines | Entered Subcaves 872 | -10/Subcaves | Accompanied by 2 allies 877 | -10/Subcaves | Led the pair of lost Derelicts to an unsafe place 901 | -10/Subcaves | Identified exit to Materials 901 | -10/Subcaves | Discovered exit to Materials (range 16) 1057 | -10/Subcaves | A swath of the cavern ceiling suddenly collapsed 1094 | -10/Subcaves | Core integrity fell below 50% 1154 | -10/Subcaves | Ambushed by Subdwellers from Twisted Machinery 1168 | -10/Subcaves | Core integrity fell below 20% 1192 | -10/Subcaves | Lost 3 parts (2n1w) 1726 | -10/Subcaves | Identified exit to Recycling 1726 | -10/Subcaves | Discovered exit to Recycling (range 8) 1726 | -10/Subcaves | Destroyed by Autobeam Turret with Autobeam Last Messages --------------- 01133_ Destroyed Scrap Shield. 01135_ F2-F69(R) destroyed. 01138_ Subatomizers dissect the Sub. Laser. 01150_ Sneak attack on 3E-F0Q(u). 01154_ X4-EXR(R) emerges from the Twisted Machinery. 01157_ Flight Unit destroyed. 01160_ X4-EXR(R) suffers critical hit (Burn). 01160_ X4-EXR(R) destroyed. 01161_ Flight Unit destroyed. 01162_ Acquired 5 matter. 01174_ M4-42Z(R) affixes Scrap Shield Fragment to Scrap Shield. 01176_ M4-42Z(R) destroyed. 01275_ 3E-F0Q(u) builds Twisted Machinery. 01701_ S-10 Pest springs to life. 01705_ RU-X21(g) destroyed. 01707_ S-10 Pest destroyed. 01723_ Acquired Beamcaster. 01726_ EXIT=FOUND: RECYCLING Map ----- +----------------------------------------------------+ | ?????????????????????????????????????????????????? | | ?????????????????????????????????????????????????? | | ?????????????????????????????????????????????????? | | ?????????????????????????????????????????????????? | | ?????????????????????????????????????????????????? | | ?????????????????????????????????????????????????? | | ?????????????????????????????????????????????????? | | ?????????????????????????????????????????????????? | | ?????????????????????????????????????????????????? | | ?????????????????????????????????????????????????? | | ?????????????????????????????????????????????????? | | ?????????????????????????????????????????????????? | | ?????????????????????????????????????????????????? | | ?????????????????????????????????????????????????? | | ?????????????????????????????????????????????????? | | ?????????????? ????????????????????????????????? | | ??????????????? ???????????????????????????????? | | ??????????????? ????????##?????????????????????? | | ??????????????## ???#####>#####?????????????????? | | ?????????????## ####"""" """"#?????????????????? | | ?????????????# ##" " " "#?????????????????? | | ??????????????# #" t t "#?????????????????? | | ???????????????# # #?????? ???????#### | | ???????????????# ## %= #??? ?????# " | | ?????????????### ##? *=[ "#??? ????# # | | ???????????### ####@=%##???? ??## # | | ??????????## !%*= ##???# ?# | | ??????????# !%*= #????# ### # | | ??????????# ### #????# | | ??????????# ##??# ##????# # | | ??????????# ##????###????## | | ????????# ##????????#### ##### | | ????????# ### #??????### ##??## | | ????????# ####???# #????### ##??##### | | ????????##?????????## ##??## ######?## | | ????????????????????## ##?# ##?# | | ???????????????????### #??# ### | | ???????????????????# #??# | | ?????????????###???# #### ## | | ????????????## #???## "" ## | | ???????###### #???## " ## | | ??????## ## ##??# ## | | ????### ## #### &"& ## | | ????# ## "" # | | ????## ## # | | ?????### ## ## #### # | | ???????## ## ### ##??###### | | ????????# ## ## ## #????????#### | | ????????## ## ## ### #??????????? | | ?????????# ### ## ### #??????????? | +----------------------------------------------------+ Best States ------------- Heat Dissipation 39 Energy Generation 10 Energy Capacity 250 Matter Stores 300 Matter Capacity 300 Sight Range 16 Robot Scan Range 14 Terrain Scan Density 10 Resistance: KI 35 Resistance: TH 35 Resistance: EX 35 Resistance: EM 35 Resistance: I 35 Resistance: S 35 Resistance: P 35 Evasion (%) 63 Offensive Hacking 20 Item Schematics ----------------- None Robot Schematics ------------------ None Fabricated ------------ Nothing Repaired ---------- Nothing Studied --------- None Alien Tech Used ----------------- None Achievements -------------- None Challenges ------------ None Game ------ Seed SpliceReinforcedTrap Manual? 0 Play Time 00:14:07 Cumulative 197.7 hours Start 2025.12.15 @ 09:06:48 End 2025.12.15 @ 09:20:03 Sessions 1 Manual Loads 0 Difficulty Explorer Special Mode None Game No. 292 Rogue 0 Adventurer 0 Explorer 292 Win Type - Total 0 Types 0/0/0/0/0/0/0/0/0/0 Lore% 71 Gallery% 67 Achievement% 53 Wizard Run 0 Options --------- Layout 1 ASCII 0 Keyboard 0 Movement Mouse Keybinds 0 Fullscreen 1 Font 24/Smallcaps Map View 50x35 Zoom Use 0% Tactical HUD 1 Map Filters NONE Filters NONE Steam 1 RUN: 9e426e2e-a8b7-440c-98bf-b48101411905